[Event "26th Abu Dhabi Master 2019"]
[Site "Abu Dhabi"]
[Date "2019.08.02"]
[Round "1.24"]
[White "Bhambure, Shantanu"]
[Black "Vaibhav, Suri"]
[Result "1/2-1/2"]
[ECO "D38"]
[WhiteElo "2275"]
[BlackElo "2591"]
[Annotator "ChessBase"]
[PlyCount "141"]
[EventDate "2019.08.02"]
[EventType "swiss"]
[EventCountry "UAE"]
[SourceTitle "playchess.com"]
[Source "ChessBase"]
[SourceQuality "1"]
[TimeControl "5400+30"]

1. d4 {[%emt 0:00:32]} e6 {[%emt 0:00:04]} 2. c4 {[%emt 0:00:12]} d5 {[%emt 0:00:10]} 3. Nf3 {[%emt 0:02:54]} Nf6 {[%emt 0:01:16]} 4. Nc3 {[%emt 0:00:08]} Bb4 {[%emt 0:00:34]} 5. Qa4+ {[%emt 0:00:51]} Nc6 {[%emt 0:00:07]} 6. cxd5 {[%emt 0:00:16]} Nxd5 {[%emt 0:19:03]} 7. Qc2 {[%emt 0:07:08]} O-O {[%emt 0:00:31]} 8. e3 {[%emt 0:03:48]} Bd6 {[%emt 0:06:27]} 9. Bd2 {[%emt 0:07:13]} Re8 {[%emt 0:16:23]} 10. Be2 {[%emt 0:15:00]} Ndb4 {[%emt 0:07:31]} 11. Qd1 {[%emt 0:14:29]} e5 {[%emt 0:02:07]} 12. d5 {[%emt 0:01:21]} e4 {[%emt 0:16:21]} 13. Nxe4 {[%emt 0:05:56]} Rxe4 {[%emt 0:00:40]} 14. dxc6 {[%emt 0:00:08]} Nxc6 {[%emt 0:00:09]} 15. O-O {[%emt 0:01:18]} Qf6 {[%emt 0:01:52]} 16. Bc3 {[%emt 0:01:41]} Qh6 {[%emt 0:01:12]} 17. Qd5 {[%emt 0:10:29]} Re7 {[%emt 0:09:02]} 18. Rfd1 {[%emt 0:05:04]} Be6 {[%emt 0:00:46]} 19. Qb5 {[%emt 0:01:21]} Rb8 {[%emt 0:00:49]} 20. g3 {[%emt 0:02:58]} Bg4 {[%emt 0:05:14]} 21. Nd4 {[%emt 0:04:42]} Nxd4 {[%emt 0:05:21]} 22. Bxd4 {[%emt 0:02:00]} a6 {[%emt 0:00:03]} 23. Qd3 {[%emt 0:01:12]} Qh5 {[%emt 0:00:43]} 24. Bxg4 {[%emt 0:00:45]} Qxg4 {[%emt 0:00:01]} 25. Kg2 {[%emt 0:01:32]} Re6 {[%emt 0:00:13]} 26. h3 {[%emt 0:02:16]} Qh5 {[%emt 0:00:01]} 27. Bc3 {[%emt 0:01:37]} Rh6 {[%emt 0:02:55]} 28. Rh1 {[%emt 0:00:54]} Re8 {[%emt 0:00:28]} 29. Rad1 {[%emt 0:02:58]} Rg6 {[%emt 0:00:08]} 30. Rhe1 {[%emt 0:01:16]} c6 {[%emt 0:03:26]} 31. Qe2 {[%emt 0:01:53]} Qf5 {[%emt 0:01:10]} 32. Qf3 {[%emt 0:00:24]} Qe6 {[%emt 0:00:00]} 33. a3 {[%emt 0:00:40]} Rg5 {[%emt 0:00:16]} 34. e4 {[%emt 0:01:25]} Be5 {[%emt 0:00:48]} 35. h4 {[%emt 0:00:36]} Bxc3 {[%emt 0:00:23]} 36. Qxc3 {[%emt 0:00:26]} Re5 {[%emt 0:00:31]} 37. f3 {[%emt 0:00:28]} Qe7 {[%emt 0:01:12]} 38. Qc4 {[%emt 0:00:27]} h6 {[%emt 0:00:29]} 39. Re2 {[%emt 0:00:24]} Rd8 {[%emt 0:00:29]} 40. Red2 {[%emt 0:00:22]} Rxd2+ {[%emt 0:00:01]} 41. Rxd2 {[%emt 0:00:01]} Kh7 {[%emt 0:00:04]} 42. Qd3 {[%emt 0:00:30]} a5 {[%emt 0:01:10]} 43. Qd7 {[%emt 0:01:08]} Qxd7 {[%emt 0:00:19]} 44. Rxd7 {[%emt 0:00:02]} Rb5 {[%emt 0:00:00]} 45. Rd2 {[%emt 0:00:49]} Rb3 {[%emt 0:00:31]} 46. h5 {[%emt 0:00:29]} g6 {[%emt 0:00:28]} 47. hxg6+ {[%emt 0:00:43]} Kxg6 {[%emt 0:01:25]} 48. g4 {[%emt 0:00:23]} c5 {[%emt 0:00:29]} 49. Kg3 {[%emt 0:00:37]} a4 {[%emt 0:00:31]} 50. Rc2 {[%emt 0:00:39]} b6 {[%emt 0:00:02]} 51. Kf4 {[%emt 0:00:20]} Rd3 {[%emt 0:00:19]} 52. Kg3 {[%emt 0:00:43]} Kg5 {[%emt 0:00:11]} 53. Rh2 {[%emt 0:00:31]} c4 {[%emt 0:00:31]} 54. Rc2 {[%emt 0:00:24]} b5 {[%emt 0:00:03]} 55. Re2 {[%emt 0:00:32]} h5 {[%emt 0:01:59]} 56. gxh5 {[%emt 0:00:15]} Kxh5 {[%emt 0:00:00]} 57. Kf4 {[%emt 0:00:23]} Kg6 {[%emt 0:00:01]} 58. e5 {[%emt 0:00:53]} c3 {[%emt 0:01:25]} 59. bxc3 {[%emt 0:00:24]} Rxc3 60. e6 {[%emt 0:00:34]} fxe6 {[%emt 0:00:52]} 61. Rxe6+ {[%emt 0:00:05]} Kf7 {[%emt 0:00:02]} 62. Rb6 {[%emt 0:00:56]} Rb3 {[%emt 0:00:43]} 63. Ke4 {[%emt 0:00:34]} Ke7 {[%emt 0:00:01]} 64. Kd5 {[%emt 0:00:24]} Rxa3 {[%emt 0:00:47]} 65. Rxb5 {[%emt 0:00:13]} Rxf3 {[%emt 0:00:02]} 66. Rb7+ {[%emt 0:00:27]} Kd8 {[%emt 0:00:31]} 67. Ra7 {[%emt 0:00:30]} Rf4 {[%emt 0:00:20]} 68. Kc5 {[%emt 0:00:27]} Kc8 {[%emt 0:00:05]} 69. Kb5 {[%emt 0:00:09]} Kb8 {[%emt 0:00:03]} 70. Rxa4 {[%emt 0:00:04]} Rxa4 {[%emt 0:00:02]} 71. Kxa4 {[%emt 0:00:03]} 1/2-1/2

[Event "26th Abu Dhabi Master 2019"]
[Site "Abu Dhabi"]
[Date "2019.08.02"]
[Round "1.25"]
[White "Santos Latasa, Jaime"]
[Black "Vantika Agrawal"]
[Result "1-0"]
[ECO "E71"]
[WhiteElo "2594"]
[BlackElo "2243"]
[Annotator "ChessBase"]
[PlyCount "93"]
[EventDate "2019.08.02"]
[EventType "swiss"]
[EventCountry "UAE"]
[SourceTitle "playchess.com"]
[Source "ChessBase"]
[SourceQuality "1"]
[TimeControl "5400+30"]

1. d4 {[%emt 0:00:00]} Nf6 {[%emt 0:03:07]} 2. c4 {[%emt 0:00:00]} g6 {[%emt 0:00:05]} 3. Nc3 {[%emt 0:00:00]} Bg7 {[%emt 0:00:03]} 4. e4 {[%emt 0:00:00]} d6 {[%emt 0:00:03]} 5. h3 {[%emt 0:00:04]} O-O {[%emt 0:00:09]} 6. Be3 {[%emt 0:00:03]} Na6 {[%emt 0:01:12]} 7. g4 {[%emt 0:00:20]} c5 {[%emt 0:00:34]} 8. Nge2 {[%emt 0:00:11]} b6 {[%emt 0:00:35]} 9. Bg2 {[%emt 0:00:11]} e5 {[%emt 0:01:19]} 10. d5 {[%emt 0:02:42]} Nc7 {[%emt 0:01:31]} 11. Qd2 {[%emt 0:02:00]} Rb8 {[%emt 0:03:02]} 12. a4 {[%emt 0:00:53]} a6 {[%emt 0:03:47]} 13. Qd3 {[%emt 0:07:43]} Qe7 {[%emt 0:11:32]} 14. Rb1 {[%emt 0:01:56]} Nd7 {[%emt 0:33:21]} 15. h4 {[%emt 0:06:35]} Nf6 {[%emt 0:01:48]} 16. f3 {[%emt 0:00:19]} h5 {[%emt 0:03:45]} 17. g5 {[%emt 0:00:23]} Nh7 {[%emt 0:03:16]} 18. b4 {[%emt 0:01:04]} Bb7 {[%emt 0:09:19]} 19. a5 {[%emt 0:12:06]} cxb4 {[%emt 0:02:23]} 20. axb6 {[%emt 0:00:22]} bxc3 {[%emt 0:00:19]} 21. bxc7 {[%emt 0:00:05]} Qxc7 {[%emt 0:01:44]} 22. Nxc3 {[%emt 0:00:09]} f6 {[%emt 0:03:11]} 23. gxf6 {[%emt 0:02:43]} Bxf6 {[%emt 0:00:49]} 24. Ke2 {[%emt 0:00:59]} Qe7 {[%emt 0:07:14]} 25. Bf2 {[%emt 0:00:30]} a5 {[%emt 0:03:07]} 26. c5 {[%emt 0:02:58]} dxc5 {[%emt 0:00:32]} 27. Na4 {[%emt 0:00:10]} Rfc8 {[%emt 0:04:29]} 28. Qc4 {[%emt 0:02:13]} Nf8 {[%emt 0:00:58]} 29. Bh3 {[%emt 0:00:17]} Rd8 {[%emt 0:00:40]} 30. Rb6 {[%emt 0:04:30]} Kg7 {[%emt 0:00:32]} 31. Qb5 {[%emt 0:04:34]} Rd6 {[%emt 0:00:31]} 32. Bxc5 {[%emt 0:02:29]} Rxb6 {[%emt 0:00:03]} 33. Qxb6 {[%emt 0:00:26]} Qe8 {[%emt 0:00:49]} 34. Qxa5 {[%emt 0:02:12]} Nd7 {[%emt 0:00:40]} 35. Qc7 {[%emt 0:02:20]} Ba6+ {[%emt 0:00:13]} 36. Kd2 {[%emt 0:00:16]} Bc8 {[%emt 0:00:44]} 37. Bxd7 {[%emt 0:00:25]} Bxd7 {[%emt 0:00:25]} 38. Nb6 {[%emt 0:00:11]} Rxb6 {[%emt 0:00:37]} 39. Bxb6 {[%emt 0:00:16]} Qe7 {[%emt 0:00:28]} 40. Bc5 {[%emt 0:00:32]} Qf7 {[%emt 0:00:21]} 41. Bd6 {[%emt 0:01:21]} Kh6 {[%emt 0:00:41]} 42. Bxe5 {[%emt 0:00:32]} Bxe5 {[%emt 0:00:31]} 43. Qxe5 {[%emt 0:00:08]} Kh7 {[%emt 0:00:21]} 44. Ke3 {[%emt 0:00:09]} Bb5 {[%emt 0:00:37]} 45. Rc1 {[%emt 0:00:59]} Qa7+ 46. Kf4 {[%emt 0:00:14]} Qf7+ {[%emt 0:01:00]} 47. Kg3 {[%emt 0:00:08]} 1-0

[Event "26th Abu Dhabi Master 2019"]
[Site "Abu Dhabi"]
[Date "2019.08.02"]
[Round "1.26"]
[White "Gomes, Mary Ann"]
[Black "Jobava, Baadur"]
[Result "0-1"]
[ECO "A06"]
[WhiteElo "2303"]
[BlackElo "2594"]
[Annotator "ChessBase"]
[PlyCount "82"]
[EventDate "2019.08.02"]
[EventType "swiss"]
[EventCountry "UAE"]
[SourceTitle "playchess.com"]
[Source "ChessBase"]
[SourceQuality "1"]
[TimeControl "5400+30"]

1. Nf3 {[%emt 0:00:00]} d5 {[%emt 0:05:42]} 2. g3 {[%emt 0:00:24]} Nc6 {[%emt 0:00:48]} 3. d4 {[%emt 0:01:06]} Bf5 {[%emt 0:00:07]} 4. c3 {[%emt 0:00:47]} Qd7 {[%emt 0:00:14]} 5. Bf4 {[%emt 0:01:14]} f6 {[%emt 0:02:26]} 6. Nbd2 {[%emt 0:01:26]} g5 {[%emt 0:00:41]} 7. Be3 {[%emt 0:00:15]} Bh3 {[%emt 0:00:47]} 8. Bxh3 {[%emt 0:05:15]} Qxh3 {[%emt 0:00:07]} 9. b4 {[%emt 0:00:23]} e6 {[%emt 0:00:29]} 10. Qa4 {[%emt 0:01:30]} g4 {[%emt 0:06:30]} 11. Nh4 {[%emt 0:00:41]} Kf7 {[%emt 0:01:50]} 12. Bf4 {[%emt 0:12:08]} Bh6 {[%emt 0:06:03]} 13. Bxh6 {[%emt 0:14:35]} Nxh6 {[%emt 0:00:13]} 14. e4 {[%emt 0:01:38]} a5 {[%emt 0:04:02]} 15. b5 {[%emt 0:08:28]} Ne7 {[%emt 0:00:05]} 16. O-O-O {[%emt 0:00:40]} Ng6 {[%emt 0:00:44]} 17. Nxg6 {[%emt 0:00:50]} hxg6 {[%emt 0:00:05]} 18. Rde1 {[%emt 0:11:26]} b6 {[%emt 0:08:27]} 19. c4 {[%emt 0:09:21]} dxe4 {[%emt 0:03:29]} 20. Rxe4 {[%emt 0:00:54]} Nf5 {[%emt 0:00:23]} 21. c5 {[%emt 0:06:08]} Qg2 {[%emt 0:07:12]} 22. Rhe1 {[%emt 0:05:05]} Rxh2 {[%emt 0:00:48]} 23. Qc4 {[%emt 0:01:34]} Kg7 {[%emt 0:02:04]} 24. Qxe6 {[%emt 0:02:56]} Rf8 {[%emt 0:01:10]} 25. Rf4 {[%emt 0:02:54]} Rf7 {[%emt 0:03:08]} 26. Qc6 {[%emt 0:05:35]} Qxc6 {[%emt 0:02:27]} 27. bxc6 {[%emt 0:00:04]} bxc5 {[%emt 0:00:05]} 28. dxc5 {[%emt 0:01:03]} Ne7 {[%emt 0:00:05]} 29. Re6 {[%emt 0:00:40]} g5 {[%emt 0:04:09]} 30. Rfe4 {[%emt 0:02:05]} Nf5 {[%emt 0:00:33]} 31. Rxg4 {[%emt 0:02:30]} Rxf2 {[%emt 0:00:07]} 32. a4 {[%emt 0:00:56]} Rf8 {[%emt 0:01:43]} 33. Nb3 {[%emt 0:01:08]} Rh8 {[%emt 0:03:06]} 34. Re1 {[%emt 0:00:23]} Rhh2 {[%emt 0:00:22]} 35. Nd4 {[%emt 0:00:45]} Ne3 {[%emt 0:07:26]} 36. Re4 {[%emt 0:00:31]} Ra2 {[%emt 0:00:06]} 37. Kb1 {[%emt 0:00:27]} Nd5 {[%emt 0:00:29]} 38. Nf5+ {[%emt 0:00:16]} Kf8 {[%emt 0:02:24]} 39. Re8+ {[%emt 0:00:32]} Kf7 {[%emt 0:00:05]} 40. R8e3 {[%emt 0:00:48]} Nxe3 {[%emt 0:00:25]} 41. Rxe3 {[%emt 0:00:05]} Raf2 {[%emt 0:00:34]} 0-1

[Event "26th Abu Dhabi Master 2019"]
[Site "Abu Dhabi"]
[Date "2019.08.02"]
[Round "1.27"]
[White "Idani, Pouya"]
[Black "Srija, Seshadri"]
[Result "1-0"]
[ECO "C44"]
[WhiteElo "2595"]
[BlackElo "2306"]
[Annotator "ChessBase"]
[PlyCount "51"]
[EventDate "2019.08.02"]
[EventType "swiss"]
[EventCountry "UAE"]
[SourceTitle "playchess.com"]
[Source "ChessBase"]
[SourceQuality "1"]
[TimeControl "5400+30"]

1. e4 {[%emt 0:00:12]} e5 {[%emt 0:00:00]} 2. Nf3 {[%emt 0:00:11]} Nc6 {[%emt 0:00:00]} 3. g3 {[%emt 0:00:03]} g6 {[%emt 0:02:47]} 4. d4 {[%emt 0:00:28]} exd4 {[%emt 0:00:43]} 5. Nxd4 {[%emt 0:00:06]} Bg7 {[%emt 0:00:32]} 6. Ne2 {[%emt 0:00:41]} Nge7 {[%emt 0:01:16]} 7. Bg2 {[%emt 0:00:12]} d6 {[%emt 0:01:46]} 8. Nbc3 {[%emt 0:00:54]} Be6 {[%emt 0:03:44]} 9. Nd5 {[%emt 0:03:05]} O-O {[%emt 0:05:53]} 10. O-O {[%emt 0:01:30]} Ne5 {[%emt 0:05:34]} 11. Ne3 {[%emt 0:08:14]} Qc8 {[%emt 0:10:47]} 12. Nf4 {[%emt 0:00:38]} Bd7 {[%emt 0:00:52]} 13. Bd2 {[%emt 0:10:49]} h5 {[%emt 0:09:43]} 14. Bc3 {[%emt 0:01:19]} h4 {[%emt 0:04:06]} 15. Nfd5 {[%emt 0:05:03]} Nxd5 {[%emt 0:00:48]} 16. Nxd5 {[%emt 0:00:05]} Re8 {[%emt 0:05:24]} 17. f4 {[%emt 0:02:49]} Bg4 {[%emt 0:00:42]} 18. Qe1 {[%emt 0:00:58]} h3 {[%emt 0:15:38]} 19. Bh1 {[%emt 0:00:17]} Nc6 {[%emt 0:05:32]} 20. Bxg7 {[%emt 0:01:44]} Kxg7 {[%emt 0:00:02]} 21. Qc3+ {[%emt 0:00:08]} Kh6 {[%emt 0:00:12]} 22. Nf6 {[%emt 0:01:55]} Re7 {[%emt 0:01:10]} 23. Bf3 {[%emt 0:02:14]} Bd7 {[%emt 0:03:29]} 24. g4 {[%emt 0:09:49]} g5 {[%emt 0:00:26]} 25. Be2 {[%emt 0:03:33]} Qh8 {[%emt 0:04:49]} 26. Rf3 {[%emt 0:00:12]} 1-0

[Event "26th Abu Dhabi Master 2019"]
[Site "Abu Dhabi"]
[Date "2019.08.02"]
[Round "1.28"]
[White "Alinasab, Mobina"]
[Black "Yakubboev, Nodirbek"]
[Result "0-1"]
[ECO "B90"]
[WhiteElo "2280"]
[BlackElo "2575"]
[Annotator "ChessBase"]
[PlyCount "94"]
[EventDate "2019.08.02"]
[EventType "swiss"]
[EventCountry "UAE"]
[SourceTitle "playchess.com"]
[Source "ChessBase"]
[SourceQuality "1"]
[TimeControl "5400+30"]

1. e4 {[%emt 0:00:17]} c5 {[%emt 0:01:15]} 2. Nf3 {[%emt 0:00:05]} d6 {[%emt 0:00:13]} 3. d4 {[%emt 0:00:05]} Nf6 {[%emt 0:02:18]} 4. Nc3 {[%emt 0:00:20]} cxd4 {[%emt 0:00:06]} 5. Nxd4 {[%emt 0:00:04]} a6 {[%emt 0:00:09]} 6. h3 {[%emt 0:00:44]} e6 {[%emt 0:00:56]} 7. g4 {[%emt 0:00:52]} Nfd7 {[%emt 0:01:36]} 8. g5 {[%emt 0:01:48]} b5 {[%emt 0:03:17]} 9. a3 {[%emt 0:01:59]} Bb7 {[%emt 0:03:56]} 10. Be3 {[%emt 0:01:16]} Be7 {[%emt 0:04:59]} 11. h4 {[%emt 0:00:08]} Nc6 {[%emt 0:01:57]} 12. Nxc6 {[%emt 0:00:52]} Bxc6 {[%emt 0:00:08]} 13. Qd4 {[%emt 0:00:08]} O-O {[%emt 0:02:52]} 14. O-O-O {[%emt 0:18:03]} Nc5 {[%emt 0:16:30]} 15. f3 {[%emt 0:02:08]} Rb8 {[%emt 0:15:18]} 16. h5 {[%emt 0:33:30]} a5 {[%emt 0:18:42]} 17. g6 {[%emt 0:03:38]} fxg6 {[%emt 0:01:31]} 18. hxg6 {[%emt 0:06:10]} hxg6 {[%emt 0:05:43]} 19. b4 {[%emt 0:01:34]} axb4 {[%emt 0:02:24]} 20. axb4 {[%emt 0:00:01]} Rxf3 {[%emt 0:07:08]} 21. Rh3 {[%emt 0:13:01]} Bf6 {[%emt 0:02:31]} 22. Qxc5 {[%emt 0:10:10]} dxc5 {[%emt 0:01:40]} 23. Rxd8+ {[%emt 0:00:06]} Rxd8 {[%emt 0:00:01]} 24. Rxf3 {[%emt 0:00:08]} Bxc3 {[%emt 0:00:02]} 25. Bh3 {[%emt 0:00:41]} Re8 {[%emt 0:01:28]} 26. Bxc5 {[%emt 0:02:03]} Bf6 {[%emt 0:00:16]} 27. Bf1 {[%emt 0:02:16]} Ra8 {[%emt 0:03:06]} 28. Bd3 {[%emt 0:00:10]} g5 {[%emt 0:00:21]} 29. Kd2 {[%emt 0:01:30]} Be5 {[%emt 0:01:08]} 30. Rf1 {[%emt 0:00:35]} Bf4+ {[%emt 0:00:44]} 31. Be3 {[%emt 0:00:21]} e5 {[%emt 0:00:18]} 32. Rg1 {[%emt 0:00:18]} Kf7 {[%emt 0:01:18]} 33. Ke2 {[%emt 0:00:32]} Kf6 {[%emt 0:00:27]} 34. Bb6 {[%emt 0:00:52]} Rh8 {[%emt 0:00:56]} 35. Rg2 {[%emt 0:00:14]} Bd7 {[%emt 0:00:27]} 36. c4 {[%emt 0:00:09]} bxc4 {[%emt 0:00:42]} 37. Bxc4 {[%emt 0:00:01]} g4 {[%emt 0:00:50]} 38. Bc5 {[%emt 0:00:39]} g3 {[%emt 0:00:19]} 39. Kf3 {[%emt 0:00:06]} Rh4 {[%emt 0:01:24]} 40. Ra2 {[%emt 0:00:25]} Bg4+ {[%emt 0:00:23]} 41. Kg2 {[%emt 0:00:02]} Rh2+ {[%emt 0:00:10]} 42. Kg1 {[%emt 0:00:14]} Kg5 {[%emt 0:00:50]} 43. Ra6 {[%emt 0:02:25]} Bd2 {[%emt 0:00:28]} 44. Ra3 {[%emt 0:00:47]} Kf4 {[%emt 0:00:28]} 45. Bd5 {[%emt 0:00:30]} Bf3 {[%emt 0:00:14]} 46. Kf1 {[%emt 0:00:19]} Rh1+ {[%emt 0:00:33]} 47. Bg1 {[%emt 0:00:01]} Bxb4 {[%emt 0:00:12]} 0-1

[Event "26th Abu Dhabi Master 2019"]
[Site "Abu Dhabi"]
[Date "2019.08.02"]
[Round "1.29"]
[White "Aleksandrov, Aleksej"]
[Black "Ajay Krishna, S."]
[Result "1-0"]
[ECO "A58"]
[WhiteElo "2571"]
[BlackElo "2280"]
[Annotator "ChessBase"]
[PlyCount "109"]
[EventDate "2019.08.02"]
[EventType "swiss"]
[EventCountry "UAE"]
[SourceTitle "playchess.com"]
[Source "ChessBase"]
[SourceQuality "1"]
[TimeControl "5400+30"]

1. d4 {[%emt 0:00:00]} Nf6 {[%emt 0:00:37]} 2. c4 {[%emt 0:00:00]} c5 {[%emt 0:00:54]} 3. d5 {[%emt 0:00:00]} b5 {[%emt 0:00:09]} 4. cxb5 {[%emt 0:00:00]} a6 {[%emt 0:00:05]} 5. bxa6 {[%emt 0:00:00]} e6 {[%emt 0:00:17]} 6. Nc3 {[%emt 0:00:00]} exd5 {[%emt 0:00:24]} 7. Nxd5 {[%emt 0:00:00]} Nxa6 {[%emt 0:00:10]} 8. Bg5 {[%emt 0:00:05]} Be7 {[%emt 0:00:10]} 9. Nxe7 {[%emt 0:00:16]} Qxe7 {[%emt 0:00:10]} 10. Nf3 {[%emt 0:00:09]} O-O {[%emt 0:00:11]} 11. e3 {[%emt 0:00:02]} h6 {[%emt 0:00:07]} 12. Bh4 {[%emt 0:00:19]} d5 {[%emt 0:00:21]} 13. Be2 {[%emt 0:00:08]} Bf5 {[%emt 0:00:07]} 14. O-O {[%emt 0:00:18]} Rfd8 {[%emt 0:00:09]} 15. Rc1 {[%emt 0:05:48]} g5 {[%emt 0:13:36]} 16. Bg3 {[%emt 0:01:45]} Ne4 {[%emt 0:00:13]} 17. Nd2 {[%emt 0:02:21]} c4 {[%emt 0:15:20]} 18. Nxe4 {[%emt 0:03:46]} Bxe4 {[%emt 0:00:11]} 19. Qd4 {[%emt 0:08:24]} Nc5 {[%emt 0:04:02]} 20. Rfd1 {[%emt 0:07:51]} Nd3 {[%emt 0:22:59]} 21. Bxd3 {[%emt 0:04:33]} Bxd3 {[%emt 0:00:26]} 22. a3 {[%emt 0:02:16]} Ra6 {[%emt 0:02:28]} 23. h4 {[%emt 0:01:43]} Re6 {[%emt 0:06:24]} 24. hxg5 {[%emt 0:04:17]} Re4 {[%emt 0:02:57]} 25. Qc3 {[%emt 0:01:21]} hxg5 {[%emt 0:02:41]} 26. a4 {[%emt 0:01:06]} f6 {[%emt 0:04:47]} 27. a5 {[%emt 0:01:21]} Rg4 {[%emt 0:02:02]} 28. Qe1 {[%emt 0:11:49]} Re4 {[%emt 0:01:14]} 29. Qc3 {[%emt 0:02:05]} Rg4 {[%emt 0:00:09]} 30. Rxd3 {[%emt 0:00:16]} cxd3 {[%emt 0:00:07]} 31. Qxd3 {[%emt 0:00:02]} Kg7 {[%emt 0:05:03]} 32. a6 {[%emt 0:06:58]} Rd7 {[%emt 0:01:41]} 33. Bb8 {[%emt 0:11:40]} Rb4 {[%emt 0:08:00]} 34. a7 {[%emt 0:03:49]} Rxa7 {[%emt 0:00:08]} 35. Bxa7 {[%emt 0:00:05]} Qxa7 {[%emt 0:00:04]} 36. Qxd5 {[%emt 0:03:02]} Rxb2 {[%emt 0:00:43]} 37. Qd8 {[%emt 0:00:54]} Rb7 {[%emt 0:00:41]} 38. Rc8 {[%emt 0:02:22]} Qa1+ {[%emt 0:05:04]} 39. Kh2 {[%emt 0:00:09]} Qe5+ {[%emt 0:00:45]} 40. g3 {[%emt 0:05:25]} Kg6 {[%emt 0:00:31]} 41. Qd3+ {[%emt 0:01:32]} Kg7 {[%emt 0:00:09]} 42. Qd8 {[%emt 0:01:31]} Kg6 {[%emt 0:00:09]} 43. Qg8+ {[%emt 0:00:16]} Rg7 {[%emt 0:00:25]} 44. Qc4 {[%emt 0:00:04]} Qf5 {[%emt 0:00:51]} 45. Kg2 {[%emt 0:02:50]} Qe5 {[%emt 0:02:26]} 46. Rc5 {[%emt 0:01:24]} Qe7 {[%emt 0:00:54]} 47. Qc2+ {[%emt 0:01:30]} Kh6 {[%emt 0:00:06]} 48. Rc8 {[%emt 0:00:11]} Rh7 {[%emt 0:00:40]} 49. Kg1 {[%emt 0:00:53]} Qd7 {[%emt 0:00:34]} 50. Rg8 {[%emt 0:01:09]} Qf7 {[%emt 0:00:26]} 51. Qc8 {[%emt 0:00:12]} Rg7 {[%emt 0:01:27]} 52. Rh8+ {[%emt 0:01:38]} Kg6 {[%emt 0:00:08]} 53. Qh3 {[%emt 0:00:26]} Qc4 {[%emt 0:01:03]} 54. Rh6+ {[%emt 0:00:38]} Kf7 {[%emt 0:00:02]} 55. Qd7+ {[%emt 0:00:07]} 1-0

[Event "26th Abu Dhabi Master 2019"]
[Site "Abu Dhabi"]
[Date "2019.08.02"]
[Round "1.30"]
[White "Salih, Akar Ali Salih"]
[Black "Yuffa, Daniil"]
[Result "0-1"]
[ECO "B14"]
[WhiteElo "2261"]
[BlackElo "2582"]
[Annotator "ChessBase"]
[PlyCount "108"]
[EventDate "2019.08.02"]
[EventType "swiss"]
[EventCountry "UAE"]
[SourceTitle "playchess.com"]
[Source "ChessBase"]
[SourceQuality "1"]
[TimeControl "5400+30"]

1. e4 {[%emt 0:00:00]} c6 {[%emt 0:02:16]} 2. d4 {[%emt 0:00:00]} d5 {[%emt 0:00:07]} 3. exd5 {[%emt 0:00:21]} cxd5 {[%emt 0:00:08]} 4. c4 {[%emt 0:00:10]} Nf6 {[%emt 0:00:24]} 5. Nc3 {[%emt 0:00:47]} g6 {[%emt 0:00:48]} 6. cxd5 {[%emt 0:02:11]} Nxd5 {[%emt 0:03:30]} 7. Qb3 {[%emt 0:06:03]} Nb6 {[%emt 0:02:06]} 8. Bb5+ {[%emt 0:02:36]} Bd7 {[%emt 0:03:58]} 9. Nf3 {[%emt 0:01:29]} Bg7 {[%emt 0:00:09]} 10. Bxd7+ {[%emt 0:00:38]} Qxd7 {[%emt 0:03:26]} 11. O-O {[%emt 0:01:19]} Nc6 {[%emt 0:01:50]} 12. Be3 {[%emt 0:01:33]} O-O {[%emt 0:02:09]} 13. Rfd1 {[%emt 0:01:48]} Na5 {[%emt 0:03:15]} 14. Qb4 {[%emt 0:23:01]} Nac4 {[%emt 0:05:24]} 15. Bg5 {[%emt 0:02:37]} Rfe8 {[%emt 0:02:26]} 16. b3 {[%emt 0:03:09]} Qd6 {[%emt 0:02:10]} 17. Qxd6 {[%emt 0:05:12]} Nxd6 {[%emt 0:00:05]} 18. a4 {[%emt 0:09:41]} a6 {[%emt 0:17:21]} 19. a5 {[%emt 0:03:28]} Rac8 {[%emt 0:00:51]} 20. Rac1 {[%emt 0:00:47]} Nd7 {[%emt 0:00:39]} 21. Nd5 {[%emt 0:08:52]} f6 {[%emt 0:01:50]} 22. Rxc8 {[%emt 0:04:47]} Nxc8 {[%emt 0:00:24]} 23. Rc1 {[%emt 0:01:18]} Kf7 {[%emt 0:05:06]} 24. Bd2 {[%emt 0:04:32]} Rd8 {[%emt 0:02:19]} 25. Rc7 {[%emt 0:06:09]} Nf8 {[%emt 0:01:25]} 26. Ne3 {[%emt 0:05:34]} Nd6 {[%emt 0:03:01]} 27. Bb4 {[%emt 0:00:39]} Rd7 {[%emt 0:00:18]} 28. Bxd6 {[%emt 0:00:45]} exd6 {[%emt 0:00:09]} 29. Rc2 {[%emt 0:00:35]} Ne6 {[%emt 0:01:27]} 30. Nd5 {[%emt 0:02:15]} f5 {[%emt 0:01:56]} 31. Rc4 {[%emt 0:00:24]} Bf6 {[%emt 0:01:42]} 32. Nb6 {[%emt 0:00:11]} Re7 {[%emt 0:04:03]} 33. d5 {[%emt 0:02:58]} Nc5 {[%emt 0:05:35]} 34. b4 {[%emt 0:00:08]} Ne4 {[%emt 0:02:14]} 35. Nc8 {[%emt 0:00:08]} Re8 {[%emt 0:00:06]} 36. Rc7+ {[%emt 0:00:17]} Kg8 {[%emt 0:02:05]} 37. h4 {[%emt 0:00:45]} h6 {[%emt 0:02:02]} 38. Nb6 {[%emt 0:00:55]} Bc3 {[%emt 0:02:53]} 39. Rxb7 {[%emt 0:00:22]} Bxb4 {[%emt 0:00:17]} 40. h5 {[%emt 0:00:15]} Bc5 {[%emt 0:10:07]} 41. hxg6 {[%emt 0:00:02]} Bxf2+ {[%emt 0:00:32]} 42. Kh2 {[%emt 0:00:01]} f4 {[%emt 0:01:34]} 43. Nd7 {[%emt 0:02:07]} Bg3+ {[%emt 0:02:05]} 44. Kg1 {[%emt 0:00:01]} Bf2+ {[%emt 0:00:31]} 45. Kh2 {[%emt 0:00:03]} Bg3+ {[%emt 0:01:59]} 46. Kg1 {[%emt 0:00:16]} h5 {[%emt 0:00:00]} 47. Nd2 {[%emt 0:00:22]} Rc8 {[%emt 0:00:21]} 48. Nb3 {[%emt 0:01:03]} Rc2 {[%emt 0:01:26]} 49. Rb4 {[%emt 0:00:15]} Rb2 {[%emt 0:00:59]} 50. Kf1 {[%emt 0:01:02]} Nd2+ {[%emt 0:00:57]} 51. Nxd2 {[%emt 0:00:50]} Rxb4 {[%emt 0:00:05]} 52. Ne4 {[%emt 0:00:06]} Kg7 {[%emt 0:01:45]} 53. Nxd6 {[%emt 0:00:05]} Rb1+ {[%emt 0:00:11]} 54. Ke2 {[%emt 0:00:14]} f3+ {[%emt 0:00:07]} 0-1

[Event "26th Abu Dhabi Master 2019"]
[Site "Abu Dhabi"]
[Date "2019.08.02"]
[Round "1.31"]
[White "Paichadze, Luka"]
[Black "Aaryan Varshney"]
[Result "1/2-1/2"]
[ECO "B53"]
[WhiteElo "2567"]
[BlackElo "2284"]
[Annotator "ChessBase"]
[PlyCount "77"]
[EventDate "2019.08.02"]
[EventType "swiss"]
[EventCountry "UAE"]
[SourceTitle "playchess.com"]
[Source "ChessBase"]
[SourceQuality "1"]
[TimeControl "5400+30"]

1. e4 c5 2. Nf3 d6 3. d4 cxd4 4. Qxd4 Nc6 5. Bb5 Bd7 6. Bxc6 Bxc6 7. Nc3 Nf6 8. Bg5 e6 9. Bxf6 Qxf6 10. Qe3 Qd8 11. O-O-O Be7 12. h4 O-O 13. g4 Qc7 14. Nd4 a6 15. g5 b5 16. h5 b4 17. Nce2 Bd7 18. f4 Rac8 19. e5 dxe5 20. fxe5 Bb5 21. Ng1 Bc4 22. Kb1 Bd5 23. Rh2 a5 24. Nge2 a4 25. g6 h6 26. Nf4 Bg5 27. Nxd5 Bxe3 28. Nxc7 Rxc7 29. gxf7+ Rcxf7 30. Nxe6 Rf1 31. Rh1 Rxh1 32. Rxh1 Rf5 33. Nd8 Rxe5 34. Nc6 Rb5 35. Rh4 Rg5 36. Rh1 Rb5 37. Rh4 Rg5 38. Rh1 Rb5 39. Rh4 1/2-1/2